bitfinex/quotes_ETHUSD_20230405
["timestamp","ask_amount","ask_price","bid_price","bid_amount"]
[1680703434518,1.96086826,1910.7,1910.5,0.1]
[1680703434720,1.96086826,1910.7,1910.5,0.106]
[1680703435331,10.07415081,1910.7,1910.5,0.106]
[1680703435518,10.07615081,1910.7,1910.5,0.106]
[1680703435825,10.07615081,1910.7,1910.5,0.1]
[1680703436423,0.96093722,1910.6,1910.5,0.1]
[1680703436913,1.19093722,1910.6,1910.5,0.1]
[1680703437432,10.35297657,1910.6,1910.5,0.1]
[1680703437722,10.35497657,1910.6,1910.5,0.1]
[1680703439199,10.35497657,1910.6,1910.5,0.06228951]
[1680703439409,9.98860657,1910.6,1910.5,0.06228951]
[1680703439612,9.80542657,1910.6,1910.5,0.06228951]
[1680703440328,11.99442657,1910.6,1910.5,0.0213222]
[1680703440928,9.80542657,1910.6,1910.5,0.0213222]
[1680703441091,9.80542657,1910.6,1910.4,2.5]
[1680703441092,9.80542657,1910.6,1910.4,2.4]
[1680703441287,0.23,1910.5,1910.4,2.4]
[1680703441491,0.96609909,1910.5,1910.4,2.4]
[1680703441695,11.27138164,1910.5,1910.4,2.4]
[1680703441887,11.27338164,1910.5,1910.4,2.4]
[1680703442434,11.63912629,1910.5,1910.4,2.4]
[1680703442642,11.63912629,1910.5,1910.3,0.1]
[1680703442792,11.63912629,1910.5,1910.1,0.108]
[1680703442793,13.623,1910.3,1910.1,0.1]
[1680703442994,15.73185255,1910.2,1909.4,0.108]
[1680703443201,15.73185255,1910.2,1909.4,0.1]
[1680703443202,7.667,1909.8,1909.4,0.1]
[1680703443434,5.479,1909.6,1909.4,0.1]
[1680703443752,5.481,1909.6,1909.4,0.1]
[1680703443956,0.23,1909.5,1909.4,0.1]
[1680703444529,2.86428255,1909.5,1909.4,0.1]
[1680703444729,8.34328255,1909.5,1909.4,0.1]
[1680703444933,8.34528255,1909.5,1909.4,0.1]
[1680703446513,8.35128255,1909.5,1909.4,0.1]
[1680703447137,8.34528255,1909.5,1909.4,0.1]
[1680703447325,8.34528255,1909.5,1909.4,0.04987796]
[1680703448242,8.34528255,1909.5,1909.4,6.919e-05]
[1680703448243,12.65729655,1909.5,1909.4,6.919e-05]
[1680703448445,12.65729655,1909.5,1908.6,0.102]
[1680703448446,8.623,1909.1,1908.6,0.102]
[1680703448648,10.815,1908.8,1908.6,0.1]
[1680703448973,2.86428255,1908.7,1908.6,0.1]
[1680703449179,14.21539255,1908.7,1908.6,0.1]
[1680703449355,17.21739255,1908.7,1908.6,0.1]
[1680703449516,17.87176698,1908.7,1908.6,0.1]
[1680703449715,18.23850698,1908.7,1908.6,0.1]
[1680703449918,17.68839698,1908.7,1908.6,0.1]
[1680703450215,22.87576698,1908.7,1908.5,0.1]
[1680703450418,18.52133881,1908.6,1907.8,0.53119253]
[1680703450655,13.44928255,1907.9,1907.8,0.13077097]
[1680703450818,8.623,1907.7,1907.4,0.1]
[1680703451166,11.25728255,1907.5,1907.4,0.1]
[1680703451372,8.11528255,1907.5,1907.4,0.1]
[1680703451847,8.34528255,1907.5,1907.4,0.1]
[1680703452363,0.232,1907.5,1907.4,0.1]
[1680703452562,0.23,1907.6,1907.4,0.1]
[1680703452938,5.709,1907.6,1907.4,0.1]
[1680703453175,0.232,1907.6,1907.4,0.1]
[1680703453478,0.23,1907.5,1907.4,0.1]
[1680703453623,0.002,1907.8,1907.4,0.1]
[1680703453981,0.002,1908.1,1907.5,0.02171747]
[1680703454185,2.63428255,1908.1,1907.5,0.02171747]
[1680703454330,5.479,1908.0,1907.5,0.02171747]
[1680703454527,5.481,1908.0,1907.5,0.13388922]
[1680703455289,0.52432264,1907.9,1907.5,0.02171747]
[1680703456083,2.86428255,1907.8,1907.4,0.1]
[1680703456740,0.52432264,1907.9,1907.4,0.1]
[1680703456937,8.11328255,1907.8,1907.4,0.1]
[1680703457154,0.002,1907.8,1907.4,0.1]
[1680703457350,3.0,1908.1,1907.4,0.1]
[1680703457553,2.63428255,1908.0,1907.4,0.1]
[1680703457982,5.479,1907.9,1907.4,0.1]
[1680703458151,8.11328255,1907.8,1907.4,0.1]
[1680703458351,8.11528255,1907.8,1907.4,0.1]
[1680703458868,0.23,1907.7,1907.4,0.1]
[1680703459274,0.18347,1907.6,1907.4,0.1]
[1680703459588,8.11328255,1907.5,1907.4,0.1]
[1680703459734,9.39967255,1907.5,1907.4,0.1]
[1680703459938,9.62967255,1907.5,1907.4,0.1]
[1680703460191,12.62967255,1907.5,1907.4,0.1]
[1680703462948,0.55245,1907.5,1907.4,0.1]
[1680703463147,0.55045,1907.5,1907.4,0.1]
[1680703463608,6.02945,1907.5,1907.4,0.1]
[1680703463897,6.03145,1907.5,1907.4,0.1]
[1680703464108,11.80973255,1907.5,1907.4,0.1]
[1680703464249,11.80973255,1907.5,1906.8,0.03871063]
[1680703464250,8.623,1907.2,1906.8,0.03871063]
[1680703464452,8.623,1907.2,1906.8,0.03671063]
[1680703464453,13.99990255,1906.9,1906.8,0.03671063]
[1680703464651,13.99990255,1906.9,1906.1,4.0093004]
[1680703464652,5.0,1906.5,1906.1,1.5153004]
[1680703464890,5.479,1906.2,1906.1,1.5093004]
[1680703465094,8.29889255,1906.2,1906.1,1.5093004]
[1680703465370,6.509,1906.1,1905.7,0.006]
[1680703465578,6.509,1906.1,1905.6,0.00948317]
[1680703465579,9.17396,1905.7,1905.6,0.00948317]
[1680703465789,11.67293255,1905.7,1905.2,2.72248317]
[1680703465971,6.39743,1905.4,1905.3,0.02890436]
[1680703466187,6.03205,1905.4,1904.5,1.0092762]
[1680703466530,0.002,1905.4,1904.8,2.176]
[1680703466670,2.63428255,1905.3,1904.6,0.02375054]
[1680703466872,0.23,1905.2,1904.5,0.37118331]
[1680703467177,2.63428255,1905.1,1904.5,0.14025569]
[1680703467374,0.78118,1905.0,1904.5,0.0092762]
[1680703467574,2.198,1904.6,1904.5,0.0092762]
[1680703467872,2.198,1904.6,1903.7,0.02]
[1680703467873,5.2198,1904.6,1903.7,0.02]
[1680703468111,0.18379,1904.4,1903.8,0.02892713]
[1680703468268,8.0,1904.5,1903.8,0.02892713]
[1680703468474,2.63428255,1902.7,1900.9,3.5]
[1680703468739,2.63428255,1902.7,1900.2,2.36139819]
[1680703468740,2.186,1901.0,1900.2,2.36139819]
[1680703468961,2.186,1901.0,1899.3,2.21932476]
[1680703468962,2.192,1900.3,1899.3,2.21932476]
[1680703469088,2.192,1900.3,1899.2,0.0783855]
[1680703469089,5.0,1900.3,1900.0,0.85432324]
[1680703469276,5.0,1900.3,1899.2,0.0783855]
[1680703469277,17.22654736,1900.1,1899.2,0.0783855]
[1680703469475,2.63428255,1899.9,1899.2,2.2783855]
[1680703469695,1.0,1900.0,1899.3,2.42783855]
[1680703469904,1.74635098,1900.8,1900.0,2.198]
[1680703470113,2.198,1902.4,1899.8,0.44374866]
[1680703470114,3.67942,1902.5,1899.8,0.44374866]
[1680703470295,7.191,1903.2,1900.1,7.24698142]
[1680703470296,7.597971,1902.4,1900.1,7.24698142]
[1680703470502,6.21782264,1902.9,1902.8,0.41913277]
[1680703470681,2.102,1903.0,1900.1,5.70504444]
[1680703470682,0.004,1902.7,1900.4,2.2]
[1680703470887,0.004,1902.7,1900.2,0.72469814]
[1680703470888,0.002,1902.9,1900.5,0.22]
[1680703471084,0.002,1902.9,1901.8,2.198]
[1680703471421,6.65016614,1902.8,1901.9,0.2198]
[1680703471586,0.008,1902.8,1901.8,0.4153757]
[1680703471771,7.868,1903.1,1901.8,0.4153757]
[1680703471975,0.008,1903.1,1901.8,0.4153757]
[1680703472173,1.94650489,1903.2,1902.2,4.048]
[1680703472386,1.94650489,1903.2,1902.1,0.008]
[1680703472387,0.0572272,1903.2,1902.1,0.008]
[1680703472597,0.008,1903.8,1902.1,4.4613757]
[1680703472598,1.81901857,1903.5,1902.1,4.4613757]
[1680703472784,0.008,1903.7,1902.3,4.048]
[1680703473112,4.048,1904.0,1902.5,1.0]
[1680703473412,4.048,1904.0,1902.3,0.008]
[1680703473413,4.05108264,1903.8,1902.3,0.008]
[1680703473610,4.048,1903.4,1902.3,0.4153757]
[1680703473776,5.0,1903.1,1902.3,0.4153757]
[1680703473977,5.0,1902.9,1902.3,0.4153757]
[1680703474211,5.0,1902.5,1902.3,0.4153757]
[1680703474386,0.008,1902.5,1902.3,0.4153757]
[1680703474587,78.45468971,1902.5,1902.3,0.4153757]
[1680703474776,0.002,1902.5,1902.3,0.4153757]
[1680703474983,78.45468971,1902.5,1902.3,1.4153757]
[1680703475218,78.45668971,1902.5,1902.3,0.4153757]
[1680703475393,78.45668971,1902.5,1902.4,4.048]
[1680703475592,78.45668971,1902.5,1902.4,4.4693757]
[1680703476313,78.8992104,1902.5,1902.4,7.21972363]
[1680703476487,78.8992104,1902.5,1902.4,7.94449599]
[1680703476688,5.0,1904.1,1902.5,2.2]
[1680703476888,5.0,1903.6,1902.6,4.268]
[1680703477105,78.46268971,1903.6,1902.6,4.048]
[1680703477624,5.0,1903.1,1902.6,0.4153757]
[1680703477837,7.63428255,1902.7,1902.6,0.0003757]
[1680703477982,8.144,1902.4,1901.9,0.66405059]
[1680703478183,5.0,1902.2,1901.5,0.006]
[1680703478395,0.002,1902.2,1901.3,0.004]
[1680703478616,0.002,1902.7,1901.3,0.1006]
[1680703478931,0.002,1903.0,1901.8,6.215]
[1680703479140,78.45468971,1903.1,1902.4,2.2]
[1680703479291,78.45468971,1903.1,1902.6,4.048]
[1680703479292,0.002,1903.1,1902.6,4.048]
[1680703479619,0.002,1903.6,1902.8,4.048]
[1680703479781,5.008,1904.0,1902.7,2.208]
[1680703479980,5.002,1904.0,1902.8,0.26048]
[1680703480184,0.002,1904.0,1903.0,4.048]
[1680703480413,5.006,1904.1,1903.0,4.048]
[1680703480414,5.008,1904.1,1903.0,4.048]
[1680703480599,5.008,1904.1,1902.9,0.002]
[1680703480814,5.008,1904.1,1902.6,3.0]
[1680703480815,5.0,1903.9,1902.6,3.0]
[1680703481014,5.0,1903.6,1902.5,0.008]
[1680703481211,7.192,1903.4,1902.2,0.008]
[1680703481425,5.002,1903.4,1902.1,0.006]
[1680703481621,0.18391,1903.1,1902.0,0.006]
[1680703481853,3.374,1903.0,1902.0,0.006]
[1680703482061,0.18393,1902.9,1902.0,0.006]
[1680703482218,0.18393,1902.9,1901.8,2.7]
[1680703482219,0.02177342,1902.8,1901.8,2.706]
[1680703482549,0.18394,1902.7,1901.8,2.7]
[1680703482762,0.445138,1902.8,1901.8,2.7]
[1680703482907,0.261198,1902.8,1901.8,2.97]
[1680703483314,0.23,1902.7,1901.8,2.7]
[1680703483547,3.16577342,1902.6,1901.8,2.7]
[1680703483833,3.42697142,1902.6,1901.8,2.7]
[1680703484013,0.28297142,1902.6,1901.8,2.7]
[1680703484214,0.30059728,1902.5,1901.8,2.7]
[1680703484413,0.02177342,1902.4,1901.8,2.7]
[1680703484725,0.02177342,1902.4,1901.8,2.5086]
[1680703484922,0.30059728,1902.5,1901.8,2.5086]
[1680703485120,0.30059728,1902.5,1901.8,2.377483]
[1680703485368,0.002,1902.9,1901.9,2.87203085]
[1680703485560,0.02892713,1902.4,1901.9,6.60603085]
[1680703485746,0.02892713,1902.4,1902.0,0.66060309]
[1680703485946,0.02892713,1902.4,1902.1,2.63428255]
[1680703486147,0.02892713,1902.4,1902.1,6.33528255]
[1680703486360,0.02892713,1902.4,1902.3,3.721]
[1680703486566,0.00092713,1902.4,1902.3,9.73138255]
[1680703486763,0.00092713,1902.4,1902.3,9.99058055]
[1680703487072,0.00092713,1902.4,1902.3,13.42058055]
[1680703487485,0.00092713,1902.4,1902.3,13.930298]
[1680703487651,0.00092713,1902.4,1902.3,5.202]
[1680703487841,0.00092713,1902.4,1902.3,2.202]
[1680703488041,0.00092713,1902.4,1902.3,8.921]
[1680703488273,0.00092713,1902.4,1902.3,8.923]
[1680703488450,0.00092713,1902.4,1902.3,11.953]
[1680703488652,0.00092713,1902.4,1902.3,11.0483]
[1680703488847,0.18489713,1902.4,1901.8,7.966]
[1680703489048,0.18489713,1902.4,1901.8,0.002]
[1680703489049,2.63428255,1902.3,1901.8,0.002]
[1680703489248,0.18402,1902.0,1901.3,0.006]
[1680703489452,0.18402,1902.0,1901.1,0.006]
[1680703489453,0.02177342,1901.9,1901.1,0.006]
[1680703489665,0.20579342,1901.9,1901.0,0.006]
[1680703489866,0.18404,1901.8,1901.0,0.3773]
[1680703490086,0.18404,1901.8,1901.0,0.3713]
[1680703490413,0.57995645,1901.8,1901.0,0.3713]
[1680703490688,0.39591645,1901.8,1901.0,0.3713]
[1680703490853,0.39591645,1901.8,1901.6,4.735]
[1680703491050,0.39591645,1901.8,1901.7,0.4735]
[1680703491250,0.00092713,1902.4,1901.7,0.4735]
[1680703491943,0.00092713,1902.4,1901.7,1.4735]
[1680703492143,0.3988001,1902.3,1901.7,1.4735]
[1680703492388,0.3988001,1902.3,1901.8,2.2]
[1680703492566,0.3988001,1902.3,1902.0,2.2]
[1680703492777,0.3988001,1902.3,1902.1,1.0]
[1680703492980,0.0008001,1902.3,1902.2,2.2]
[1680703493187,0.00092713,1902.4,1902.2,7.679]
[1680703493386,0.00092713,1902.4,1902.3,0.22]
[1680703493571,0.00092713,1902.4,1902.3,3.22]
[1680703493902,0.00092713,1902.4,1902.3,4.45]
[1680703494195,0.00092713,1902.4,1902.3,9.929]
[1680703494354,0.00092713,1902.4,1902.3,13.664]
[1680703495496,0.00092713,1902.4,1901.9,7.962]
[1680703495799,0.18489713,1902.4,1901.9,0.002]
[1680703495985,0.24018184,1902.4,1901.5,0.58127499]
[1680703496289,0.38740685,1902.3,1901.2,5.943]
[1680703496512,0.38740685,1902.3,1901.4,5.479]
[1680703496695,0.57138685,1902.3,1901.4,5.481]
[1680703496882,0.38740685,1902.3,1901.6,5.479]
[1680703497053,0.38740685,1902.3,1901.7,0.5479]
[1680703497392,0.20575342,1902.3,1901.4,0.002]
[1680703497704,0.20575342,1902.3,1901.4,5.479]
[1680703497870,0.00092713,1902.4,1901.6,3.722]
[1680703498072,0.18490713,1902.4,1901.7,5.709]
[1680703498257,0.00092713,1902.4,1901.7,0.232]
[1680703498457,0.18489713,1902.4,1901.7,0.6254]
[1680703498680,0.00092713,1902.4,1901.7,0.3954]
[1680703499001,0.02270055,1902.4,1901.7,6.8744]
[1680703499294,0.20668055,1902.4,1901.8,6.16644]
[1680703499508,0.02270055,1902.4,1901.8,6.39844]
[1680703499721,0.02270055,1902.4,1901.9,10.853844]
[1680703499722,0.00092713,1902.4,1901.9,10.853844]
[1680703500004,0.00092713,1902.4,1902.0,0.23]
[1680703500443,0.00092713,1902.4,1901.9,4.376844]
[1680703500630,0.00092713,1902.4,1902.0,0.4376844]
[1680703500941,0.00092713,1902.4,1901.7,1.0]
[1680703501145,0.00092713,1902.4,1901.8,0.23]
[1680703501346,0.00092713,1902.4,1902.0,5.479]
[1680703501653,0.00092713,1902.4,1902.0,0.002]
[1680703501949,0.00092713,1902.4,1901.9,6.265]
[1680703501950,0.00092713,1902.4,1901.9,0.002]
[1680703502150,0.00092713,1902.4,1901.6,6.298]
[1680703502446,0.00092713,1902.4,1901.7,8.74308255]
[1680703502624,0.00092713,1902.4,1901.7,11.88908255]
[1680703502825,0.00092713,1902.4,1901.9,5.479]
[1680703503032,0.00092713,1902.4,1902.1,2.63428255]
[1680703503235,0.02270055,1902.4,1902.1,2.63428255]
[1680703504227,0.37167561,1902.3,1902.1,2.63428255]
[1680703505222,0.00092713,1902.4,1902.2,2.63428255]
[1680703505427,0.00092713,1902.4,1902.2,2.89771081]
[1680703506248,0.00092713,1902.4,1902.2,2.63428255]
[1680703507065,0.00092713,1902.4,1901.9,1.0]
[1680703507066,0.00092713,1902.4,1902.3,2.63428255]
[1680703507277,0.1839,1903.2,1902.3,9.12828255]
[1680703507434,0.73554,1903.4,1903.0,2.63428255]
[1680703507795,0.55167,1903.3,1902.7,0.002]
[1680703507935,0.00308264,1903.2,1902.4,1.0]
[1680703508147,0.0585579,1903.2,1902.5,2.63428255]
[1680703508349,0.18698264,1903.2,1902.5,2.63428255]
[1680703508861,3.12669,1903.0,1902.2,0.002]
[1680703509065,0.5518,1902.8,1902.2,2.63428255]
[1680703509261,0.23912,1902.7,1902.3,2.63428255]
[1680703509428,0.20573342,1902.6,1902.3,2.63428255]
[1680703509627,0.006,1902.8,1902.3,2.63428255]
[1680703509859,0.18391,1903.1,1902.3,2.63428255]
[1680703510160,0.02177342,1903.0,1902.3,2.63428255]
[1680703510370,0.20569342,1903.0,1902.3,2.63428255]
[1680703510666,0.26304476,1903.0,1902.3,2.63428255]
[1680703512138,0.07912476,1903.0,1902.3,2.63428255]
[1680703512351,0.02177342,1903.0,1902.3,2.63428255]
[1680703512547,0.20569342,1903.0,1902.3,2.63428255]
[1680703513262,0.5363822,1902.9,1902.3,2.63428255]
[1680703513459,0.3524522,1902.9,1902.3,2.63428255]
[1680703513837,0.3524522,1902.9,1902.5,2.63428255]
[1680703514040,0.5363822,1902.9,1902.3,0.008]
[1680703514282,0.3524522,1902.9,1902.1,2.708]
[1680703514478,0.5363822,1902.9,1902.1,2.706]
[1680703514681,0.5363722,1902.9,1902.3,2.63428255]
[1680703514841,0.62679442,1902.9,1902.3,2.63428255]
[1680703515173,0.3524522,1902.9,1902.5,2.63428255]
[1680703515974,0.3524522,1902.9,1902.6,2.63428255]
[1680703516183,0.00308264,1903.2,1902.6,2.63428255]
[1680703516442,0.18698264,1903.2,1902.6,2.63428255]
[1680703516678,0.2424589,1903.2,1902.6,2.63428255]
[1680703516863,0.6102589,1903.2,1902.6,2.63428255]
[1680703517063,0.55478264,1903.2,1902.6,2.63428255]
[1680703517376,0.90608326,1903.1,1902.7,2.63428255]
[1680703517561,0.96156152,1903.1,1902.7,2.63428255]
[1680703517749,0.96156152,1903.1,1903.0,2.63428255]
[1680703517750,0.35435326,1903.1,1903.0,2.63428255]
[1680703517948,0.35435326,1903.1,1903.0,4.83428255]
[1680703518148,0.002,1903.9,1903.0,4.83428255]
[1680703518149,0.006,1903.9,1903.1,2.2]
[1680703518352,0.02177342,1903.8,1903.2,2.63428255]
[1680703521297,0.48554635,1903.9,1903.3,2.0]
[1680703521499,0.30171635,1903.9,1903.4,2.63428255]
[1680703521669,0.30171635,1903.9,1903.5,4.83428255]
[1680703522565,0.30171635,1903.9,1903.6,1.0]
[1680703522886,0.30171635,1903.9,1903.7,2.63428255]
[1680703523086,0.30171635,1903.9,1903.8,2.2]
[1680703523403,0.30171635,1903.9,1903.8,4.83428255]
[1680703523571,0.11000001,1904.6,1904.2,2.4]
[1680703523899,0.11000001,1904.6,1904.3,2.63428255]
[1680703524460,0.11000001,1904.6,1904.4,1.0]
[1680703524706,0.11000001,1904.6,1904.5,4.83428255]
[1680703525572,0.11000001,1904.6,1904.5,2.63428255]
[1680703525905,0.11000001,1904.6,1904.3,0.006]
[1680703526104,0.11000001,1904.6,1904.3,2.63428255]
[1680703526313,0.11000001,1904.6,1904.2,10.362]
[1680703526512,0.02177342,1904.5,1904.2,10.362]
[1680703526671,0.02177342,1904.5,1904.2,12.99628255]
[1680703527307,0.02177342,1904.5,1904.3,2.63428255]
[1680703528210,0.02177342,1904.5,1904.2,10.362]
[1680703528414,0.02177342,1904.5,1904.2,12.99628255]
[1680703529418,0.02177342,1904.5,1904.3,3.2]
[1680703529628,0.11000001,1904.6,1904.3,4.83428255]
[1680703530092,0.11000001,1904.6,1904.4,1.0]
[1680703530420,0.11000001,1904.6,1904.5,2.63428255]
[1680703532170,0.11000001,1904.6,1904.4,0.002]
[1680703532378,0.11000001,1904.6,1904.5,2.63428255]
[1680703532825,0.11000001,1904.6,1904.3,0.002]
[1680703533002,0.29376001,1904.6,1904.2,10.362]
[1680703533182,3.36170156,1904.6,1904.2,7.962]
[1680703533522,0.18378,1904.4,1904.2,0.002]
[1680703533815,2.81806255,1904.4,1903.4,2.2]
[1680703533997,3.02177342,1904.3,1903.4,2.2]
[1680703534323,1.00153573,1904.3,1903.4,4.4]
[1680703534483,0.81774573,1904.3,1903.5,1.0]
[1680703534686,0.08177457,1904.2,1903.4,4.408]
[1680703534926,0.02177342,1904.1,1903.4,4.406]
[1680703535216,0.02177342,1904.1,1903.4,4.4]
[1680703535819,0.02177342,1904.1,1903.5,2.63428255]
[1680703536018,0.02177342,1904.1,1903.5,3.33771081]
[1680703536230,0.18378,1904.5,1903.5,3.33771081]
[1680703536373,0.18378,1904.4,1903.7,2.2]
[1680703536721,0.02177342,1904.3,1903.7,4.83428255]
[1680703536878,0.02177342,1904.3,1903.8,2.63428255]
[1680703537221,0.11000001,1904.6,1903.8,2.63428255]
[1680703537373,0.11000001,1904.6,1903.7,2.208]
[1680703537374,2.74428256,1904.6,1903.7,2.208]
[1680703537729,2.74428256,1904.6,1903.8,2.63428255]
[1680703537730,0.02177342,1904.5,1903.8,2.63428255]
[1680703537951,0.02177342,1904.5,1903.8,4.83428255]
[1680703538258,0.02177342,1904.5,1904.0,2.2]
[1680703538400,0.02177342,1904.5,1904.1,2.63428255]
[1680703540019,0.02177342,1904.5,1904.0,0.008]
[1680703540341,0.02177342,1904.5,1903.9,2.2]
[1680703540510,0.02177342,1904.5,1903.7,0.008]
[1680703540711,0.02177342,1904.5,1903.9,2.2]
[1680703540917,0.02177342,1904.5,1904.0,2.63428255]
[1680703541530,0.11000001,1904.6,1904.1,2.2]
[1680703541735,0.11000001,1904.6,1904.3,4.83428255]
[1680703542311,0.11000001,1904.6,1904.4,1.0]
[1680703542515,0.11000001,1904.6,1904.5,2.63428255]
[1680703546253,0.10728526,1904.6,1904.5,2.63428255]
[1680703547218,0.10728526,1904.6,1904.2,0.002]
[1680703547416,0.10728526,1904.6,1904.3,2.63428255]
[1680703547757,0.10728526,1904.6,1904.1,0.002]
[1680703547964,0.10728526,1904.6,1904.2,2.63428255]
[1680703548869,0.10728526,1904.6,1904.3,2.63428255]
[1680703549216,0.10728526,1904.6,1904.5,2.2]
[1680703549453,0.10728526,1904.6,1904.5,4.83428255]
[1680703549956,0.29104526,1904.6,1904.4,0.002]
[1680703550125,0.29104526,1904.6,1904.0,2.3]
[1680703550349,0.65857526,1904.6,1904.0,4.93428255]
[1680703550538,0.65857526,1904.6,1904.0,2.3]
[1680703550539,0.55135,1904.4,1904.0,2.3]
[1680703550736,0.57312342,1904.4,1904.0,2.3]
[1680703551325,0.1838,1904.2,1904.0,4.93428255]
[1680703551637,0.73206155,1904.3,1904.1,2.63428255]
[1680703551816,0.73206155,1904.3,1904.0,2.302]
[1680703552017,0.73206155,1904.3,1904.0,4.93428255]
[1680703552245,0.1838,1904.2,1904.0,4.93428255]
[1680703552447,0.73206155,1904.3,1904.0,2.3]
[1680703552649,1.3566377,1904.3,1904.0,2.3]
[1680703553069,1.3566377,1904.3,1903.5,0.008]
[1680703553230,0.02177342,1904.2,1903.3,3.63428255]
[1680703553555,6.03049,1904.0,1903.2,2.202]
[1680703553852,6.03049,1904.0,1903.2,2.2]
[1680703553853,5.479,1903.8,1903.2,2.2]
[1680703554052,1.83491,1903.7,1903.2,2.2]
[1680703554751,0.02177342,1903.6,1903.2,2.2]
[1680703554967,5.479,1903.4,1903.0,0.002]
[1680703555272,14.78735255,1903.3,1902.4,2.802]
[1680703555421,14.81112597,1903.3,1902.3,0.106]
[1680703555776,0.55174,1903.1,1902.3,0.1]
[1680703556119,0.55179,1902.9,1902.3,0.1]
[1680703556319,0.18393,1902.9,1902.3,0.1]
[1680703556760,0.02177342,1902.8,1902.3,0.1]
[1680703556953,0.55183,1902.7,1902.3,0.1]
[1680703557149,0.239143,1902.6,1902.3,0.1]
[1680703557455,3.00216255,1902.8,1902.3,0.1]
[1680703557456,0.02177342,1902.7,1902.3,0.1]
[1680703557655,2.65605597,1902.7,1902.3,0.1]
[1680703557864,2.83999597,1902.7,1902.3,0.1]
[1680703558193,0.99973056,1902.6,1902.3,0.1]
[1680703558343,0.18396,1902.5,1902.3,0.1]
[1680703558774,2.81824255,1902.5,1902.3,0.1]
[1680703559183,4.048,1902.4,1902.3,0.1]
[1680703559478,15.71320255,1902.4,1902.3,0.1]
[1680703559683,9.17498,1902.2,1902.0,0.1]
[1680703559987,12.14528255,1902.1,1902.0,0.1]
[1680703560152,12.14728255,1902.1,1902.0,0.1]
[1680703560352,12.37728255,1902.1,1902.0,0.1]
[1680703560563,15.63848055,1902.1,1902.0,0.1]
[1680703560963,15.66248055,1902.1,1902.0,0.1]
[1680703561165,5.479,1901.9,1901.1,2.306]
[1680703561368,5.77828255,1901.7,1901.1,2.306]
[1680703561566,9.535,1901.6,1900.9,0.006]
[1680703561780,5.479,1901.4,1900.6,0.006]
[1680703561967,2.63628255,1901.4,1900.6,0.006]
[1680703562286,0.002,1901.5,1900.8,2.2]
[1680703562581,0.002,1901.9,1900.9,2.85428255]
[1680703562748,2.63428255,1901.9,1900.9,2.86028255]
[1680703562950,8.11328255,1901.9,1901.0,0.28602826]
[1680703563150,0.02177342,1901.8,1901.0,0.28602826]
[1680703563382,2.63428255,1901.7,1901.0,0.006]
[1680703563682,2.63428255,1901.7,1900.9,0.006]
[1680703563897,8.11328255,1901.6,1900.8,0.006]
[1680703564042,2.63628255,1901.6,1900.8,2.4266]
[1680703564244,2.63428255,1901.6,1900.8,2.206]
[1680703564544,2.65605597,1901.6,1900.8,0.006]
[1680703564775,2.92186157,1901.6,1900.8,0.006]
[1680703564978,0.28757902,1901.6,1900.8,0.006]
[1680703565176,0.02177342,1901.6,1900.8,0.006]
[1680703565485,0.02177342,1901.6,1900.8,2.64028255]
[1680703565685,0.02177342,1901.6,1900.9,2.63428255]
[1680703565849,0.002,1902.0,1901.0,2.63428255]
[1680703566055,15.571,1902.3,1901.3,2.2]
[1680703566252,15.571,1902.3,1901.4,2.63428255]
[1680703566253,18.20528255,1902.3,1901.4,2.63428255]
[1680703566481,18.20528255,1902.3,1901.4,2.64028255]
[1680703566780,18.20528255,1902.3,1901.4,2.63428255]
[1680703566946,10.092,1902.3,1901.4,2.64028255]
[1680703567148,0.002,1902.3,1901.5,2.63428255]
[1680703567392,0.002,1902.8,1901.8,2.63428255]
[1680703567567,0.18394,1902.8,1901.9,0.26342826]
[1680703567863,0.18593,1902.9,1902.0,2.63428255]
[1680703568071,0.36783,1903.1,1902.1,0.26342826]
[1680703568399,0.36783,1903.1,1902.2,2.63428255]
[1680703568705,0.18392,1903.0,1902.2,2.63428255]
[1680703569566,0.18392,1903.0,1902.2,4.84028255]
[1680703569794,0.18389,1903.3,1902.3,0.48402826]
[1680703569988,8.11328255,1903.1,1902.3,0.48402826]
[1680703570148,0.02377342,1903.1,1902.4,2.63428255]
[1680703570350,0.002,1903.4,1902.5,0.26342826]
[1680703570653,9.8366,1903.6,1902.6,2.63428255]
[1680703570886,0.002,1903.6,1903.0,2.2]
[1680703571093,0.36761,1904.2,1902.8,2.402]
[1680703571401,4.056,1903.8,1902.8,2.4]
[1680703571727,0.18386,1903.7,1902.8,2.4]
[1680703572001,0.02177342,1903.6,1902.8,2.4]
[1680703572201,0.72017353,1903.6,1902.8,2.4]
[1680703572513,0.72017353,1903.6,1902.9,0.24]
[1680703572856,0.69840011,1903.6,1902.9,1.24]
[1680703573056,0.69840011,1903.6,1902.9,3.44]
[1680703573408,0.006,1904.1,1903.1,2.2]
[1680703573559,0.18379,1904.3,1903.2,0.22]
[1680703573757,5.479,1904.4,1903.2,0.22]
[1680703573970,8.12128255,1904.4,1903.2,0.22]
[1680703574201,1.45643221,1904.3,1903.2,0.22]
[1680703574959,1.45643221,1904.3,1903.3,2.63428255]
[1680703575202,1.45643221,1904.3,1903.3,4.83428255]
[1680703575470,0.64430395,1904.3,1903.5,2.2]
[1680703575629,79.09899366,1904.3,1903.6,2.63428255]
[1680703575933,79.10099366,1904.3,1903.6,2.63428255]
[1680703576090,79.10099366,1904.3,1903.6,3.11851081]
[1680703576907,79.10099366,1904.3,1903.7,1.0]
[1680703577107,79.10099366,1904.3,1903.8,2.63428255]
[1680703577291,79.10699366,1904.3,1903.8,2.63428255]
[1680703577510,0.65230395,1904.3,1903.8,2.63428255]